bitfinex/quotes_SOLUSD_20220130
["timestamp","ask_amount","ask_price","bid_price","bid_amount"]
[1643529169771,35.11872569,96.478,96.434,1.42945596]
[1643529169973,35.11872569,96.478,96.43,1.42945596]
[1643529170172,35.11872569,96.478,96.438,6.0]
[1643529170372,35.11872569,96.478,96.44,6.0]
[1643529171672,35.11872569,96.478,96.43,1.42945596]
[1643529171875,0.25,96.477,96.431,0.25]
[1643529172477,24.5223,96.477,96.431,0.25]
[1643529172676,35.11872569,96.478,96.428,17.25235596]
[1643529173374,0.25,96.477,96.428,17.25235596]
[1643529173676,0.25,96.477,96.427,1.42945596]
[1643529173875,0.25,96.477,96.41,14.9]
[1643529173876,0.25,96.477,96.428,1.42945596]
[1643529174480,6.0,96.468,96.427,1.42945596]
[1643529174676,6.0,96.468,96.421,1.42945596]
[1643529174874,6.0,96.468,96.411,1.80330177]
[1643529174875,0.25,96.467,96.415,1.42945596]
[1643529175075,6.25,96.467,96.414,1.42945596]
[1643529175475,24.7195,96.466,96.414,1.42945596]
[1643529175779,24.7195,96.466,96.424,6.0]
[1643529175976,24.7195,96.466,96.421,6.0]
[1643529176175,24.7195,96.466,96.425,6.0]
[1643529176375,0.25,96.465,96.426,0.25]
[1643529176674,24.7195,96.466,96.43,6.0]
[1643529176875,0.25,96.465,96.43,6.0]
[1643529177178,0.25,96.465,96.431,6.0]
[1643529177375,0.25,96.465,96.43,6.0]
[1643529177578,0.25,96.465,96.429,6.0]
[1643529177775,0.25,96.465,96.419,1.42945596]
[1643529177977,0.25,96.465,96.418,1.42945596]
[1643529178180,0.25,96.465,96.421,6.0]
[1643529180678,0.25,96.465,96.425,6.0]
[1643529181779,0.25,96.465,96.424,6.0]
[1643529182382,0.25,96.465,96.421,6.0]
[1643529182580,0.25,96.465,96.425,6.0]
[1643529183184,0.25,96.465,96.424,6.0]
[1643529183385,14.9,96.53,96.425,0.25]
[1643529183583,47.0174,96.529,96.426,1.80330177]
[1643529183784,1.42613438,96.521,96.427,0.25]
[1643529183984,47.0174,96.529,96.442,1.42945596]
[1643529184184,47.0174,96.529,96.443,23.4027]
[1643529184384,39.01627134,96.528,96.457,1.42945596]
[1643529184584,39.01627134,96.528,96.467,6.0]
[1643529184784,39.01627134,96.528,96.468,0.25]
[1643529185189,0.25,96.527,96.471,6.0]
[1643529185387,0.25,96.527,96.472,0.25]
[1643529185588,0.25,96.527,96.479,6.0]
[1643529185789,0.25,96.527,96.48,0.25]
[1643529185988,39.01627134,96.528,96.482,6.0]
[1643529186592,39.01627134,96.528,96.46,6.0]
[1643529186990,52.73627134,96.528,96.46,6.0]
[1643529187190,52.73627134,96.528,96.459,6.0]
[1643529187390,24.4424,96.527,96.459,6.0]
[1643529187593,24.4424,96.527,96.44,14.9]
[1643529187594,103.6,96.526,96.44,14.9]
[1643529187827,0.25,96.525,96.44,14.9]
[1643529188020,0.25,96.525,96.441,1.80330177]
[1643529188420,0.25,96.525,96.442,23.5462]
[1643529188720,0.25,96.525,96.442,23.7962]
[1643529188922,0.25,96.525,96.452,6.0]
[1643529189121,0.25,96.526,96.453,6.0]
[1643529189321,0.25,96.526,96.453,6.25]
[1643529191523,6.0,96.517,96.453,6.25]
[1643529191724,24.7778,96.516,96.453,6.25]
[1643529191930,25.0278,96.516,96.453,6.25]
[1643529192125,41.87542183,96.505,96.453,6.25]
[1643529193227,41.87542183,96.505,96.453,6.0]
[1643529193426,41.87542183,96.505,96.443,1.80330177]
[1643529193427,6.0,96.495,96.435,1.42945596]
[1643529193626,24.1691,96.504,96.432,1.80330177]
[1643529193826,24.1691,96.504,96.42,16.32945596]
[1643529194028,24.1691,96.504,96.435,6.0]
[1643529194627,24.1691,96.504,96.436,6.25]
[1643529194826,23.9191,96.504,96.436,8.05330177]
[1643529195027,23.9191,96.504,96.44,6.0]
[1643529195426,23.9191,96.504,96.446,6.0]
[1643529195627,23.9191,96.504,96.441,23.7141]
[1643529195628,0.25,96.503,96.441,25.26740177]
[1643529195826,23.9191,96.504,96.442,0.25]
[1643529196227,23.9191,96.504,96.451,6.0]
[1643529196427,23.9191,96.504,96.442,0.25]
[1643529196428,6.0,96.494,96.442,0.25]
[1643529196830,0.25,96.493,96.442,0.25]
[1643529197630,6.0,96.494,96.442,0.25]
[1643529198229,0.25,96.493,96.442,0.25]
[1643529198430,6.0,96.494,96.442,0.25]
[1643529199231,6.0,96.494,96.443,1.80330177]
[1643529200130,23.9191,96.504,96.443,1.80330177]
[1643529200334,0.25,96.503,96.443,1.80330177]
[1643529200532,0.25,96.503,96.444,0.25]
[1643529200933,0.25,96.503,96.445,1.80330177]
[1643529201134,23.9191,96.504,96.451,6.0]
[1643529201333,23.9191,96.504,96.452,0.25]
[1643529201733,41.87542183,96.505,96.452,0.25]
[1643529201934,41.87542183,96.505,96.451,6.0]
[1643529202733,0.25,96.504,96.441,24.2087]
[1643529203036,41.87542183,96.505,96.441,24.2087]
[1643529203234,41.87542183,96.505,96.442,0.25]
[1643529204434,0.25,96.504,96.442,0.25]
[1643529205835,41.87542183,96.505,96.442,2.05330177]
[1643529206037,41.87542183,96.505,96.451,6.0]
[1643529206561,41.87542183,96.505,96.452,6.0]
[1643529207437,41.87542183,96.505,96.453,2.05330177]
[1643529207838,41.87542183,96.505,96.454,1.80330177]
[1643529208341,41.87542183,96.505,96.455,0.25]
[1643529208739,41.87542183,96.505,96.454,1.80330177]
[1643529208940,41.87542183,96.505,96.455,0.25]
[1643529210950,0.25,96.504,96.455,0.25]
[1643529211146,41.87542183,96.505,96.455,0.25]
[1643529212948,41.87542183,96.505,96.453,0.25]
[1643529215873,41.87542183,96.505,96.453,1.67945596]
[1643529217268,41.87542183,96.505,96.453,0.25]
[1643529218068,22.8744,96.545,96.453,0.25]
[1643529218269,6.0,96.535,96.454,1.42945596]
[1643529218672,0.25,96.534,96.455,0.25]
[1643529218868,22.9021,96.534,96.453,26.62945596]
[1643529219069,33.71195957,96.533,96.463,6.0]
[1643529219269,33.71195957,96.533,96.464,0.25]
[1643529219470,33.71195957,96.533,96.464,24.2298]
[1643529219672,33.71195957,96.533,96.465,1.80330177]
[1643529219871,33.71195957,96.533,96.474,6.0]
[1643529220071,33.71195957,96.533,96.475,6.0]
[1643529220271,33.71195957,96.533,96.48,14.9]
[1643529221070,33.71195957,96.533,96.481,0.25]
[1643529228883,33.71195957,96.533,96.49,6.0]
[1643529229281,33.71195957,96.533,96.491,0.25]
[1643529230984,6.0,96.523,96.46,30.446]
[1643529231386,0.25,96.522,96.47,6.0]
[1643529231582,6.25,96.522,96.47,6.0]
[1643529232383,23.5292,96.532,96.47,6.0]
[1643529232584,0.25,96.531,96.47,6.0]
[1643529232783,6.0,96.522,96.461,0.25]
[1643529232984,24.689,96.521,96.461,0.25]
[1643529233189,34.659,96.521,96.453,1.42945596]
[1643529233385,34.99787258,96.51,96.454,0.25]
[1643529233584,34.99787258,96.51,96.462,6.0]
[1643529233784,24.6661,96.509,96.454,0.25]
[1643529234184,24.6661,96.509,96.455,6.0]
[1643529234384,24.6661,96.509,96.456,0.25]
[1643529234586,24.6661,96.509,96.454,0.25]
[1643529235887,24.6661,96.509,96.453,0.25]
[1643529238389,24.6661,96.509,96.451,0.25]
[1643529238994,34.99787258,96.51,96.451,0.25]
[1643529239190,23.6584,96.509,96.451,0.25]
[1643529239592,23.6584,96.509,96.451,6.0]
[1643529240892,23.6584,96.509,96.45,6.0]
[1643529247000,23.4084,96.509,96.45,6.0]
[1643529247198,23.4084,96.509,96.451,0.25]
[1643529248422,0.25,96.508,96.451,0.25]
[1643529248623,23.4084,96.509,96.452,1.8036555]
[1643529248824,23.4084,96.509,96.453,0.25]
[1643529249226,34.99787258,96.51,96.454,1.8036555]
[1643529249423,34.99787258,96.51,96.455,6.0]
[1643529249622,34.99787258,96.51,96.464,6.0]
[1643529249823,34.99787258,96.51,96.465,0.25]
[1643529250024,34.99787258,96.51,96.47,6.0]
[1643529250422,34.99787258,96.51,96.466,1.8036555]
[1643529250825,34.99787258,96.51,96.476,6.0]
[1643529251426,103.6,96.552,96.476,6.0]
[1643529251626,15.549,96.55,96.476,6.0]
[1643529251828,0.25,96.549,96.476,6.0]
[1643529252427,0.25,96.549,96.477,0.25]
[1643529252629,6.0,96.541,96.477,0.25]
[1643529252826,23.6493,96.54,96.477,0.25]
[1643529255131,45.04308398,96.529,96.477,0.25]
[1643529255332,24.5008,96.528,96.477,0.25]
[1643529255530,24.5008,96.528,96.477,6.25]
[1643529255731,24.2508,96.528,96.478,0.25]
[1643529256134,24.2508,96.528,96.477,5.75]
[1643529257235,24.2508,96.528,96.478,0.25]
[1643529257436,24.2508,96.528,96.478,2.0536555]
[1643529257636,24.2508,96.528,96.488,6.0]
[1643529257838,24.2508,96.528,96.489,0.25]
[1643529258037,24.2508,96.528,96.489,6.25]
[1643529260138,45.04308398,96.529,96.489,6.25]
[1643529260339,1.42613438,96.567,96.489,16.71]
[1643529260540,1.42613438,96.572,96.49,31.7557555]
[1643529260739,1.42613438,96.575,96.49,29.9521]
[1643529260940,1.42613438,96.576,96.499,6.0]
[1643529261140,24.8652,96.584,96.499,13.85]
[1643529261340,38.79727867,96.575,96.5,0.25]
[1643529261540,38.79727867,96.575,96.509,6.0]
[1643529261938,38.79727867,96.575,96.51,0.25]
[1643529262340,0.25,96.574,96.51,0.25]
[1643529264039,0.25,96.574,96.502,24.5544]
[1643529264239,0.25,96.574,96.502,24.8044]
[1643529264439,38.79727867,96.575,96.512,6.0]
[1643529264642,38.79727867,96.575,96.512,16.35]
[1643529264839,38.79727867,96.575,96.513,0.25]
[1643529265039,38.79727867,96.575,96.513,6.25]
[1643529265240,38.79727867,96.575,96.522,6.0]
[1643529265640,38.79727867,96.575,96.523,0.25]
[1643529265843,0.25,96.574,96.523,0.25]
[1643529266042,0.25,96.574,96.523,6.25]
[1643529266442,0.25,96.574,96.523,0.25]
[1643529266842,0.25,96.574,96.514,0.25]
[1643529267042,0.25,96.574,96.523,6.0]
[1643529267346,0.25,96.574,96.524,0.25]
[1643529271546,0.25,96.574,96.513,24.2035]
[1643529271747,0.25,96.574,96.524,0.25]
[1643529272948,0.25,96.574,96.512,0.25]
[1643529274549,0.25,96.574,96.511,0.25]
[1643529276050,0.25,96.574,96.52,6.0]
[1643529276451,0.25,96.574,96.521,0.25]
[1643529276650,0.25,96.574,96.521,6.25]
[1643529278555,6.0,96.565,96.521,6.0]
[1643529278760,6.0,96.565,96.5,14.9]
[1643529278957,6.0,96.565,96.471,24.7481]
[1643529278958,23.1625,96.564,96.471,24.7481]
[1643529279156,46.1024,96.564,96.481,6.0]
[1643529279656,46.1024,96.564,96.49,6.0]
[1643529279958,39.45518122,96.553,96.49,6.0]
[1643529280156,23.9508,96.552,96.49,6.0]
[1643529280365,6.0,96.543,96.49,6.0]
[1643529280557,24.2008,96.552,96.49,6.0]
[1643529281056,6.0,96.542,96.475,6.0]
[1643529281258,0.25,96.541,96.48,6.0]
[1643529281678,0.25,96.541,96.486,6.0]
[1643529281880,0.25,96.541,96.487,0.25]
[1643529282480,23.9508,96.552,96.487,0.25]
[1643529282682,15.545,96.58,96.487,0.25]
[1643529282887,51.20122167,96.611,96.5,14.9]
[1643529283086,52.20279252,96.622,96.51,6.0]
[1643529283283,15.2797,96.654,96.523,1.42945596]
[1643529283485,24.7476,96.653,96.544,1.42945596]
[1643529283681,1.41563579,96.664,96.55,14.9]
[1643529283881,0.00563579,96.664,96.59,186.2]
[1643529284082,0.00563579,96.682,96.6,6.0]
[1643529284284,0.00563579,96.717,96.64,186.2]
[1643529284581,0.00563579,96.746,96.67,186.2]
[1643529284782,0.00563579,96.766,96.68,14.9]
[1643529284985,0.1,96.771,96.68,20.9]
[1643529285182,526.83982477,96.79,96.73,186.2]
[1643529285385,504.02212477,96.79,96.74,14.9]
[1643529285581,500.58462477,96.79,96.75,186.2]
[1643529285781,4.29873313,96.864,96.76,14.9]
[1643529285981,41.01032948,96.863,96.76,20.9]
[1643529286181,22.6685,96.89,96.77,186.2]
[1643529286383,22.6685,96.89,96.79,186.2]
[1643529286587,0.87655118,96.924,96.8,207.1]
[1643529286786,4.29873313,96.978,96.82,186.2]
[1643529286986,4.29873313,96.989,96.84,186.2]
[1643529287186,38.99429408,96.954,96.85,14.9]
[1643529287386,38.99429408,96.954,96.85,20.9]
[1643529287586,15.488,96.95,96.85,14.9]
[1643529288185,17.52591341,96.949,96.85,14.9]
[1643529288385,40.31563654,96.939,96.85,14.9]
[1643529288586,103.6,96.938,96.82,14.9]
[1643529288787,15.495,96.92,96.82,14.9]
[1643529288988,42.51764563,96.919,96.83,6.0]
[1643529289185,42.76764563,96.919,96.83,14.58]
[1643529289388,2.95669142,96.918,96.831,0.25]
[1643529289788,0.25,96.917,96.831,0.25]
[1643529289985,0.25,96.917,96.83,20.9]
[1643529290188,103.6,96.909,96.83,6.0]
[1643529290390,6.0,96.899,96.801,6.0]
[1643529290589,6.0,96.897,96.801,6.0]
[1643529290788,103.85,96.896,96.801,6.0]
[1643529290990,103.6,96.885,96.79,14.9]
[1643529291389,2.95669142,96.884,96.8,6.0]
[1643529291589,32.90091171,96.883,96.81,14.9]
[1643529291987,6.0,96.873,96.82,6.0]
[1643529292191,6.0,96.873,96.8,6.0]
[1643529292192,6.0,96.873,96.8,14.9]
[1643529292588,0.25,96.872,96.81,6.0]
[1643529292789,6.0,96.873,96.8,14.9]
[1643529292989,6.0,96.873,96.81,6.0]
[1643529293193,0.25,96.872,96.81,6.0]
[1643529293389,0.25,96.872,96.811,0.25]
[1643529293790,32.90091171,96.883,96.811,11.5]
[1643529293989,32.90091171,96.883,96.82,14.9]
[1643529294190,32.90091171,96.883,96.821,6.0]
[1643529296293,0.25,96.882,96.821,6.0]
[1643529297093,32.90091171,96.883,96.821,6.0]
[1643529297296,32.90091171,96.883,96.822,0.25]
[1643529297495,32.90091171,96.883,96.821,6.0]
[1643529298096,6.0,96.873,96.82,14.9]
[1643529298301,0.25,96.872,96.79,14.9]
[1643529298496,0.25,96.872,96.75,186.2]
[1643529298497,0.25,96.872,96.78,14.9]
[1643529298698,6.25,96.872,96.78,14.9]
[1643529299495,0.25,96.872,96.79,6.0]
[1643529299698,0.25,96.872,96.79,20.9]
[1643529299896,0.25,96.872,96.752,17.94338161]
[1643529299897,106.55669142,96.872,96.752,17.94338161]
[1643529300098,6.0,96.862,96.762,6.0]
[1643529300295,39.05909574,96.861,96.751,6.0]
[1643529300496,42.01578716,96.861,96.76,6.0]
[1643529300696,6.0,96.851,96.76,6.0]
[1643529300900,0.25,96.85,96.762,6.0]
[1643529301099,0.25,96.85,96.77,14.9]
[1643529301302,0.25,96.85,96.771,0.25]
[1643529301499,0.25,96.85,96.78,6.0]
[1643529301701,0.25,96.85,96.79,14.9]
[1643529302105,38.80909574,96.861,96.8,6.0]
[1643529302705,38.80909574,96.861,96.8,19.89]
[1643529302903,38.80909574,96.861,96.801,0.25]
[1643529304404,0.25,96.86,96.801,0.25]
[1643529304605,0.25,96.86,96.8,14.9]
[1643529304806,0.25,96.86,96.77,14.9]
[1643529305008,6.0,96.851,96.781,0.25]
[1643529305209,0.25,96.86,96.781,0.25]
[1643529305407,0.25,96.86,96.79,14.9]
[1643529305707,0.25,96.86,96.8,6.0]
[1643529306708,0.25,96.86,96.79,14.9]
[1643529306908,0.25,96.86,96.791,0.25]
[1643529307309,0.25,96.86,96.79,14.9]
[1643529307509,103.85,96.86,96.8,6.0]
[1643529308336,0.25,96.86,96.8,6.0]
[1643529308535,38.80909574,96.861,96.8,6.0]
[1643529308933,38.80909574,96.861,96.801,0.25]
[1643529309532,38.80909574,96.861,96.802,1.83990831]
[1643529309932,38.80909574,96.861,96.812,6.0]
[1643529310332,38.80909574,96.861,96.813,0.25]
[1643529311342,38.80909574,96.861,96.811,0.25]
[1643529316347,1.40184743,96.871,96.811,0.25]
[1643529316548,1.40184743,96.872,96.811,0.25]
[1643529316744,0.25,96.87,96.811,0.25]
[1643529317344,1.40184743,96.868,96.811,0.25]
[1643529317744,1.40184743,96.867,96.811,0.25]
[1643529319350,1.23626887,96.867,96.811,0.25]
[1643529319850,0.25,96.87,96.811,0.25]
[1643529320253,0.25,96.87,96.812,1.83990831]
[1643529320652,0.25,96.87,96.822,6.0]
[1643529320853,14.9,96.95,96.823,0.25]
[1643529321153,4.29873313,96.942,96.85,15.482]
[1643529321352,23.0373,96.981,96.85,15.482]
[1643529321353,2.84532103,96.968,96.901,1.83990831]
[1643529321557,2.84532103,96.968,96.911,6.0]
[1643529321757,42.39206176,97.003,96.911,6.0]
[1643529321953,4.29873313,97.021,96.92,6.0]
[1643529322158,4.29873313,97.021,96.93,14.9]
[1643529322352,4.29873313,97.021,96.931,0.25]
[1643529322553,4.29873313,97.021,96.94,6.0]
[1643529322753,4.29873313,97.021,96.95,14.9]
[1643529322954,38.83935998,97.021,96.95,26.39]
[1643529323155,38.83935998,97.021,96.96,6.0]
[1643529323354,38.83935998,97.021,96.96,20.9]
[1643529323555,38.83935998,97.021,96.96,14.9]
[1643529323754,38.83935998,97.021,96.93,186.2]
[1643529323755,5.69894428,97.02,96.93,14.9]
[1643529323956,6.0,97.011,96.9,14.9]
[1643529324156,2.95669142,96.999,96.9,14.9]
[1643529324355,39.53231481,96.993,96.9,14.9]
[1643529324753,0.25,96.998,96.9,14.9]
[1643529324754,0.5635176,96.969,96.9,14.9]
[1643529324954,0.5635176,96.969,96.901,1.83990831]
[1643529325155,0.5635176,96.969,96.901,14.38990831]
[1643529325356,0.5635176,96.969,96.901,33.38412325]
[1643529325559,0.5635176,96.969,96.902,20.83412325]
[1643529325757,38.40716683,96.968,96.902,20.83412325]
[1643529325958,0.25,96.967,96.9,14.9]
[1643529327558,0.25,96.967,96.91,6.0]
[1643529328158,0.5635176,96.969,96.91,6.0]
[1643529328359,0.5635176,96.969,96.92,14.9]
[1643529328558,0.5635176,96.969,96.93,6.0]
[1643529329158,43.38043159,96.968,96.92,14.9]
[1643529329362,0.25,96.967,96.92,14.9]
[1643529329558,0.25,96.967,96.89,14.9]
[1643529329757,0.25,96.967,96.891,6.0]
[1643529331058,0.25,96.967,96.9,6.0]
[1643529331460,103.85,96.967,96.9,6.0]
[1643529331862,103.85,96.967,96.88,14.9]
[1643529332062,103.85,96.967,96.89,6.0]
[1643529332266,6.0,96.957,96.891,0.25]
[1643529332462,0.25,96.956,96.89,6.0]
[1643529332662,0.25,96.956,96.88,6.0]
[1643529332862,0.25,96.956,96.87,14.9]
[1643529333064,103.85,96.956,96.871,0.25]
[1643529333562,103.85,96.956,96.87,14.9]
[1643529333563,146.57249175,96.945,96.87,14.9]
[1643529333761,0.25,96.944,96.87,14.9]
[1643529333962,6.0,96.935,96.87,14.9]
[1643529334564,0.25,96.934,96.85,14.9]
[1643529334866,0.25,96.934,96.851,0.25]
[1643529335064,109.85,96.934,96.813,18.99421494]
[1643529335265,119.73,96.934,96.813,18.99421494]
[1643529335467,14.9,96.93,96.77,14.9]
[1643529335769,0.30951504,96.918,96.753,78.1401]
[1643529335964,14.9,96.91,96.753,78.1401]
[1643529336167,36.16226614,96.899,96.753,78.1401]
[1643529336367,0.25,96.898,96.753,78.1401]
[1643529336569,0.25,96.898,96.754,1.8105862]
[1643529336772,36.16226614,96.899,96.754,1.8105862]
[1643529336773,36.16226614,96.899,96.76,15.495]
[1643529336975,36.16226614,96.899,96.77,14.9]
[1643529337173,36.16226614,96.899,96.77,20.9]
[1643529337373,36.16226614,96.899,96.771,1.8105862]
[1643529337572,36.16226614,96.899,96.781,6.0]
[1643529337774,103.6,96.898,96.79,14.9]
[1643529337976,6.0,96.889,96.782,1.79901083]
[1643529338180,103.6,96.887,96.8,6.0]
[1643529338382,0.25,96.886,96.8,6.0]
[1643529338779,0.25,96.886,96.801,0.25]
[1643529338980,0.25,96.886,96.792,6.0]
[1643529340784,0.25,96.886,96.793,0.25]
[1643529341486,42.45087078,96.875,96.792,6.0]
[1643529341894,6.0,96.865,96.792,6.0]
[1643529342097,6.0,96.865,96.78,6.0]
[1643529342295,0.25,96.864,96.78,6.0]
[1643529342695,0.25,96.864,96.781,6.0]
[1643529342900,0.25,96.864,96.781,8.04901083]
[1643529343300,0.25,96.874,96.782,1.79901083]
[1643529343699,0.25,96.874,96.792,6.0]
[1643529343899,0.25,96.874,96.793,0.25]
[1643529344400,0.25,96.874,96.792,6.0]
[1643529344605,6.0,96.865,96.792,6.0]
[1643529344800,0.25,96.864,96.78,6.0]
[1643529345200,103.85,96.864,96.78,6.0]
[1643529345400,103.85,96.864,96.781,0.25]
[1643529345601,103.85,96.864,96.781,1.79901083]
[1643529345800,103.85,96.864,96.782,0.25]
[1643529346002,44.3268302,96.853,96.781,1.79901083]
[1643529346406,0.25,96.852,96.791,6.0]
[1643529346904,103.85,96.852,96.792,0.25]
[1643529347506,103.85,96.852,96.781,6.0]
[1643529349009,103.6,96.852,96.781,6.0]
[1643529349508,103.6,96.852,96.781,7.79901083]
[1643529349509,103.51731578,96.852,96.781,7.79901083]
[1643529349711,103.51731578,96.852,96.781,1.79901083]
[1643529349909,103.51731578,96.852,96.791,6.0]
[1643529350310,103.51731578,96.852,96.792,0.25]
[1643529350509,103.51731578,96.852,96.791,6.0]
[1643529350710,0.25,96.851,96.791,6.0]
[1643529350910,0.25,96.851,96.763,6.0]
[1643529351108,0.25,96.851,96.756,1.79901083]
[1643529351109,0.25,96.851,96.78,6.0]
[1643529351510,0.25,96.851,96.771,0.25]
[1643529351910,0.25,96.851,96.766,6.0]
[1643529353318,0.25,96.851,96.767,0.25]
[1643529354016,103.51731578,96.841,96.767,0.25]
[1643529354414,0.25,96.84,96.767,0.25]
[1643529355816,103.51731578,96.829,96.767,0.25]
[1643529356017,103.51731578,96.829,96.763,6.0]
[1643529356217,0.25,96.828,96.764,0.25]
[1643529357819,32.73764298,96.83,96.764,0.25]
[1643529358419,0.25,96.829,96.764,0.25]
[1643529361042,30.403,96.87,96.764,0.25]
[1643529361242,15.498,96.89,96.765,1.79901083]
[1643529361443,23.5931,96.915,96.78,14.9]
[1643529361652,0.25,96.889,96.79,6.0]
[1643529361848,0.25,96.889,96.791,0.25]
[1643529362047,41.19242182,96.926,96.791,17.95]
[1643529362249,41.19242182,96.926,96.792,15.80589012]
[1643529362447,41.19242182,96.926,96.801,6.0]
[1643529362650,2.8337666,96.925,96.81,30.389]
[1643529362848,2.8337666,96.925,96.82,14.9]
[1643529363047,2.8337666,96.925,96.82,20.9]
[1643529363245,2.8337666,96.925,96.821,0.25]
[1643529363447,0.25,96.924,96.821,0.25]
[1643529363647,6.0,96.915,96.821,0.25]
[1643529363847,0.25,96.914,96.821,0.25]
[1643529364048,6.25,96.914,96.821,0.25]
[1643529364748,103.6,96.913,96.821,0.25]
[1643529364949,3.08109348,96.912,96.82,6.0]
[1643529365251,3.08109348,96.912,96.79,15.492]
[1643529365252,103.6,96.9,96.802,6.0]
[1643529365448,2.83109348,96.899,96.802,6.0]
[1643529365648,109.6,96.889,96.798,6.0]
[1643529365848,0.25,96.888,96.798,6.0]
[1643529366048,2.82980701,96.887,96.788,427.09255343]
[1643529366248,40.10033797,96.878,96.788,427.09255343]
[1643529366449,6.0,96.877,96.788,427.09255343]
[1643529366648,6.0,96.868,96.788,427.09255343]
[1643529366847,6.0,96.868,96.789,0.25]
[1643529367047,6.0,96.868,96.788,427.09255343]
[1643529367247,103.6,96.877,96.788,427.09255343]
[1643529367447,103.6,96.877,96.789,0.25]
[1643529367650,103.6,96.877,96.798,6.0]
[1643529367852,103.6,96.877,96.799,0.25]
[1643529368248,23.8695,96.876,96.799,0.25]
[1643529368648,6.0,96.866,96.799,0.25]
[1643529368848,103.85,96.865,96.799,0.25]
[1643529369048,103.85,96.865,96.776,0.25]
[1643529369847,103.6,96.865,96.776,0.25]
[1643529370049,103.6,96.865,96.777,1.79901083]
[1643529370248,103.6,96.865,96.787,6.0]
[1643529370452,0.25,96.864,96.787,6.0]
[1643529370650,0.25,96.864,96.79,6.0]
[1643529370853,0.25,96.864,96.791,0.25]
[1643529371853,0.25,96.864,96.79,6.0]
[1643529372057,0.25,96.864,96.787,6.0]
[1643529372058,35.61715233,96.853,96.787,6.0]
[1643529372254,103.85,96.852,96.787,6.0]
[1643529372455,103.85,96.852,96.763,6.0]
[1643529372456,103.6,96.842,96.763,6.0]
[1643529372856,0.25,96.841,96.763,6.0]
[1643529374857,0.25,96.841,96.764,0.25]
[1643529376962,47.2249,96.852,96.765,1.79901083]
[1643529377264,47.2249,96.852,96.775,6.0]
[1643529377661,6.0,96.842,96.78,6.0]
[1643529377862,47.2249,96.852,96.775,6.0]
[1643529378062,47.2249,96.852,96.776,0.25]
[1643529378466,35.61715233,96.853,96.776,0.25]
[1643529379091,103.6,96.852,96.776,0.25]
[1643529379263,103.85,96.852,96.771,0.25]
[1643529379466,6.0,96.842,96.771,0.25]
[1643529379664,6.0,96.842,96.72,17.60991604]
[1643529379665,103.6,96.841,96.75,14.9]
[1643529379963,103.6,96.841,96.721,23.1354]
[1643529379964,6.0,96.831,96.74,14.9]